[Event "*** Titled Tuesday Blitz"]
[Site "Chess.com"]
[Date "2021.04.20"]
[Round "5"]
[White "Jumbo"]
[Black "lider34"]
[Result "1-0"]
[WhiteElo "2795"]
[BlackElo "2459"]
[TimeControl "180+1"]
[EndTime "10:52:41 PDT"]
[Termination "Jumbo won by resignation"]

1. e4 {[%clk 0:03:00.9]} 1... c6 {[%clk 0:02:59]} 2. Nf3 {[%clk 0:03:00.8]} 2...
d5 {[%clk 0:02:59.9]} 3. Nc3 {[%clk 0:03:01.3]} 3... dxe4 {[%clk 0:02:59.2]} 4.
Nxe4 {[%clk 0:03:02.2]} 4... Nf6 {[%clk 0:02:59.6]} 5. Ng3 {[%clk 0:02:59.7]}
5... g6 {[%clk 0:02:58.2]} 6. Bc4 {[%clk 0:02:59.1]} 6... Bg7 {[%clk 0:02:57.7]}
7. O-O {[%clk 0:02:58.6]} 7... O-O {[%clk 0:02:58]} 8. h3 {[%clk 0:02:58.1]}
8... c5 {[%clk 0:02:56.2]} 9. c3 {[%clk 0:02:52.1]} 9... Nc6 {[%clk 0:02:55.3]}
10. d4 {[%clk 0:02:52.1]} 10... cxd4 {[%clk 0:02:54.2]} 11. cxd4 {[%clk
0:02:53]} 11... Nd5 {[%clk 0:02:48]} 12. Bb3 {[%clk 0:02:50.7]} 12... Na5 {[%clk
0:02:42.4]} 13. Ba4 {[%clk 0:02:47.3]} 13... Bd7 {[%clk 0:02:41]} 14. Bc2 {[%clk
0:02:46.3]} 14... Rc8 {[%clk 0:02:35.4]} 15. Re1 {[%clk 0:02:40.9]} 15... Nb4
{[%clk 0:02:31.1]} 16. Bb1 {[%clk 0:02:37.2]} 16... Bc6 {[%clk 0:02:25]} 17. Ne5
{[%clk 0:02:35.5]} 17... Bd5 {[%clk 0:02:21.6]} 18. Bd2 {[%clk 0:02:34.1]} 18...
Nac6 {[%clk 0:02:19.3]} 19. Bc3 {[%clk 0:02:23.2]} 19... Be6 {[%clk 0:02:07.5]}
20. Ng4 {[%clk 0:02:15.2]} 20... Nd5 {[%clk 0:02:02.5]} 21. Be4 {[%clk
0:02:08.2]} 21... Qd6 {[%clk 0:01:55.8]} 22. Bf3 {[%clk 0:02:05]} 22... Rfd8
{[%clk 0:01:54.8]} 23. Ne4 {[%clk 0:02:05.3]} 23... Qc7 {[%clk 0:01:48.7]} 24.
Nc5 {[%clk 0:02:03.8]} 24... Nf4 {[%clk 0:01:24.1]} 25. Nxe6 {[%clk 0:01:50.1]}
25... fxe6 {[%clk 0:01:17]} 26. Re4 {[%clk 0:01:42.4]} 26... Rd5 {[%clk
0:01:00.1]} 27. Qe1 {[%clk 0:01:32.6]} 27... Qd6 {[%clk 0:00:52.7]} 28. Rxf4
{[%clk 0:01:30.4]} 1-0

[Event "*** Titled Tuesday Blitz"]
[Site "Chess.com"]
[Date "2021.04.20"]
[Round "5"]
[White "gagtemp"]
[Black "LamaChampetre"]
[Result "0-1"]
[WhiteElo "1958"]
[BlackElo "2188"]
[TimeControl "180+1"]
[EndTime "10:52:42 PDT"]
[Termination "LamaChampetre won by resignation"]

1. e4 {[%clk 0:03:00.9]} 1... c5 {[%clk 0:02:44.7]} 2. Nf3 {[%clk 0:03:00.3]}
2... g6 {[%clk 0:02:43.9]} 3. d4 {[%clk 0:03:01.2]} 3... cxd4 {[%clk 0:02:44]}
4. Nxd4 {[%clk 0:03:01.7]} 4... Nc6 {[%clk 0:02:44.5]} 5. Nc3 {[%clk 0:03:00.9]}
5... Bg7 {[%clk 0:02:44]} 6. Be3 {[%clk 0:03:00.3]} 6... Nf6 {[%clk 0:02:44.2]}
7. f3 {[%clk 0:02:56.9]} 7... O-O {[%clk 0:02:44.3]} 8. Bc4 {[%clk 0:02:56.3]}
8... a6 {[%clk 0:02:40.8]} 9. Qd2 {[%clk 0:02:55.1]} 9... Qc7 {[%clk 0:02:37.5]}
10. Bb3 {[%clk 0:02:52.2]} 10... b5 {[%clk 0:02:37.1]} 11. O-O-O {[%clk
0:02:49.1]} 11... Bb7 {[%clk 0:02:36.5]} 12. h4 {[%clk 0:02:48.3]} 12... h5
{[%clk 0:02:36.5]} 13. g4 {[%clk 0:02:45.7]} 13... e6 {[%clk 0:02:36.9]} 14. Bh6
{[%clk 0:02:39.5]} 14... Nxd4 {[%clk 0:02:30.4]} 15. Bxg7 {[%clk 0:02:28.8]}
15... Nxb3+ {[%clk 0:02:30.1]} 16. axb3 {[%clk 0:02:18.2]} 16... Kxg7 {[%clk
0:02:30.1]} 17. Qg5 {[%clk 0:02:04.2]} 17... d6 {[%clk 0:02:12.8]} 18. Rhg1
{[%clk 0:01:52.4]} 18... Qc5 {[%clk 0:02:07.1]} 19. Qf4 {[%clk 0:01:39.7]} 19...
Rac8 {[%clk 0:02:03.4]} 20. Rg2 {[%clk 0:01:20.1]} 20... Qe5 {[%clk 0:01:42.1]}
21. Qe3 {[%clk 0:01:13.8]} 21... hxg4 {[%clk 0:01:35.8]} 22. fxg4 {[%clk
0:01:07.8]} 22... Nxe4 {[%clk 0:01:34.5]} 23. Nxe4 {[%clk 0:00:32.6]} 23... Qxe4
{[%clk 0:01:34.1]} 24. Qf2 {[%clk 0:00:28.2]} 24... Qxg2 {[%clk 0:01:27.6]} 0-1

[Event "*** Titled Tuesday Blitz"]
[Site "Chess.com"]
[Date "2021.04.20"]
[Round "5"]
[White "Sanan_Sjugirov"]
[Black "Rodalquilar"]
[Result "0-1"]
[WhiteElo "2914"]
[BlackElo "2736"]
[TimeControl "180+1"]
[EndTime "10:52:50 PDT"]
[Termination "Rodalquilar won on time"]

1. d4 {[%clk 0:03:00.9]} 1... d5 {[%clk 0:02:59.8]} 2. c4 {[%clk 0:03:00.7]}
2... e6 {[%clk 0:03:00.3]} 3. Nf3 {[%clk 0:02:59.6]} 3... Nf6 {[%clk 0:03:00.2]}
4. Nc3 {[%clk 0:02:58.8]} 4... a6 {[%clk 0:03:00.2]} 5. cxd5 {[%clk 0:02:57.1]}
5... exd5 {[%clk 0:03:01.1]} 6. Bg5 {[%clk 0:02:55.8]} 6... Be6 {[%clk
0:03:01.1]} 7. e3 {[%clk 0:02:52.5]} 7... Nbd7 {[%clk 0:03:00.9]} 8. Bd3 {[%clk
0:02:51.5]} 8... c6 {[%clk 0:03:01.3]} 9. O-O {[%clk 0:02:49.3]} 9... Bd6 {[%clk
0:03:01.4]} 10. Bf4 {[%clk 0:02:49.3]} 10... Qe7 {[%clk 0:03:01.6]} 11. Bxd6
{[%clk 0:02:37]} 11... Qxd6 {[%clk 0:03:01.4]} 12. h3 {[%clk 0:02:36.8]} 12...
h6 {[%clk 0:03:01.3]} 13. a3 {[%clk 0:02:27.1]} 13... g5 {[%clk 0:03:01]} 14.
Nd2 {[%clk 0:02:13.7]} 14... g4 {[%clk 0:02:55]} 15. h4 {[%clk 0:02:07.2]} 15...
g3 {[%clk 0:02:55.1]} 16. f4 {[%clk 0:01:30.9]} 16... Bg4 {[%clk 0:02:43.7]} 17.
Qe1 {[%clk 0:01:26.2]} 17... Nh5 {[%clk 0:02:44]} 18. Be2 {[%clk 0:01:12.9]}
18... Rg8 {[%clk 0:02:35]} 19. Qd1 {[%clk 0:00:19.7]} 19... Ndf6 {[%clk
0:02:23.3]} 20. Nf3 {[%clk 0:00:18]} 20... Qe7 {[%clk 0:02:07.3]} 21. Ne5 {[%clk
0:00:17.8]} 21... Bxe2 {[%clk 0:02:07.7]} 22. Qxe2 {[%clk 0:00:15.2]} 22... Ng4
{[%clk 0:02:08.2]} 23. Nxg4 {[%clk 0:00:03.9]} 23... Qxh4 {[%clk 0:02:08.4]} 24.
Rfe1 {[%clk 0:00:01.7]} 24... Rxg4 {[%clk 0:02:07.9]} 25. Qf3 {[%clk 0:00:02.1]}
25... Kf8 {[%clk 0:01:56.5]} 26. Kf1 {[%clk 0:00:02.5]} 26... Nxf4 {[%clk
0:01:54.1]} 27. exf4 {[%clk 0:00:01.7]} 27... Rxf4 {[%clk 0:01:54.3]} 0-1

[Event "*** Titled Tuesday Blitz"]
[Site "Chess.com"]
[Date "2021.04.20"]
[Round "5"]
[White "deribas12345"]
[Black "Abund"]
[Result "0-1"]
[WhiteElo "2540"]
[BlackElo "2738"]
[TimeControl "180+1"]
[EndTime "10:52:50 PDT"]
[Termination "Abund won by resignation"]

1. d4 {[%clk 0:02:56.5]} 1... Nf6 {[%clk 0:03:00]} 2. c4 {[%clk 0:02:54.2]} 2...
g6 {[%clk 0:02:59.7]} 3. Nc3 {[%clk 0:02:53.5]} 3... d5 {[%clk 0:02:59.6]} 4.
Bg5 {[%clk 0:02:52.4]} 4... Bg7 {[%clk 0:02:58.8]} 5. Nf3 {[%clk 0:02:48.9]}
5... Ne4 {[%clk 0:02:55.5]} 6. Bh4 {[%clk 0:02:48.6]} 6... Nxc3 {[%clk
0:02:53.8]} 7. bxc3 {[%clk 0:02:49.5]} 7... dxc4 {[%clk 0:02:53.5]} 8. e3 {[%clk
0:02:49.8]} 8... b5 {[%clk 0:02:52.4]} 9. a4 {[%clk 0:02:47]} 9... c6 {[%clk
0:02:52.7]} 10. Be2 {[%clk 0:02:42.9]} 10... O-O {[%clk 0:02:46.6]} 11. O-O
{[%clk 0:02:42.5]} 11... Nd7 {[%clk 0:02:45.5]} 12. axb5 {[%clk 0:02:27.3]}
12... cxb5 {[%clk 0:02:43.7]} 13. Qb1 {[%clk 0:02:27.7]} 13... a6 {[%clk
0:02:02.6]} 14. Qe4 {[%clk 0:02:21.7]} 14... Ra7 {[%clk 0:01:41]} 15. Rfb1
{[%clk 0:01:49.4]} 15... Nf6 {[%clk 0:01:33]} 16. Bxf6 {[%clk 0:01:44.3]} 16...
Bf5 {[%clk 0:01:24.4]} 17. Qc6 {[%clk 0:01:26.8]} 17... Bxf6 {[%clk 0:01:21.9]}
18. Rb2 {[%clk 0:01:19.7]} 18... Qb8 {[%clk 0:01:13.1]} 19. e4 {[%clk
0:00:58.9]} 19... Rc8 {[%clk 0:00:54.7]} 20. Qd5 {[%clk 0:00:58.9]} 20... Be6
{[%clk 0:00:50.8]} 0-1

[Event "*** Titled Tuesday Blitz"]
[Site "Chess.com"]
[Date "2021.04.20"]
[Round "5"]
[White "frenchpin"]
[Black "iulik86"]
[Result "1-0"]
[WhiteElo "2424"]
[BlackElo "2575"]
[TimeControl "180+1"]
[EndTime "10:52:53 PDT"]
[Termination "frenchpin won by resignation"]

1. e4 {[%clk 0:03:00.9]} 1... c5 {[%clk 0:02:59.1]} 2. Nf3 {[%clk 0:03:00]} 2...
d6 {[%clk 0:02:59.3]} 3. d4 {[%clk 0:02:59.6]} 3... cxd4 {[%clk 0:02:59.6]} 4.
Nxd4 {[%clk 0:03:00.5]} 4... Nf6 {[%clk 0:03:00]} 5. f3 {[%clk 0:03:00]} 5...
Nc6 {[%clk 0:02:55.5]} 6. c4 {[%clk 0:02:58.9]} 6... Qb6 {[%clk 0:02:55.6]} 7.
Nc2 {[%clk 0:02:56.8]} 7... g6 {[%clk 0:02:51]} 8. Nc3 {[%clk 0:02:56.3]} 8...
Bg7 {[%clk 0:02:50.5]} 9. Rb1 {[%clk 0:02:56]} 9... Ng4 {[%clk 0:02:38.2]} 10.
Qd2 {[%clk 0:02:54.1]} 10... Nge5 {[%clk 0:02:19.9]} 11. Nd5 {[%clk 0:02:48.1]}
11... Qd8 {[%clk 0:02:17.9]} 12. Be2 {[%clk 0:02:24.2]} 12... O-O {[%clk
0:02:17.5]} 13. O-O {[%clk 0:02:19.6]} 13... f5 {[%clk 0:02:17]} 14. f4 {[%clk
0:02:06.2]} 14... Nf7 {[%clk 0:02:14.5]} 15. Bf3 {[%clk 0:01:22.6]} 15... fxe4
{[%clk 0:02:06.2]} 16. Bxe4 {[%clk 0:01:23.5]} 16... Nh6 {[%clk 0:02:06.4]} 17.
b4 {[%clk 0:01:11.9]} 17... e6 {[%clk 0:01:56.4]} 18. Nde3 {[%clk 0:01:11]}
18... Nf5 {[%clk 0:01:52.4]} 19. Bxf5 {[%clk 0:01:01.1]} 19... gxf5 {[%clk
0:01:47.9]} 20. b5 {[%clk 0:01:01.4]} 20... Na5 {[%clk 0:01:34.5]} 21. Ba3
{[%clk 0:00:54.2]} 21... Qb6 {[%clk 0:01:27.9]} 22. Kh1 {[%clk 0:00:32.3]} 22...
Rd8 {[%clk 0:01:15.3]} 23. Bb4 {[%clk 0:00:30.6]} 1-0

[Event "*** Titled Tuesday Blitz"]
[Site "Chess.com"]
[Date "2021.04.20"]
[Round "5"]
[White "Grandmaster2B"]
[Black "dretch"]
[Result "0-1"]
[WhiteElo "2555"]
[BlackElo "2777"]
[TimeControl "180+1"]
[EndTime "10:53:03 PDT"]
[Termination "dretch won on time"]

1. e4 {[%clk 0:02:28.7]} 1... e6 {[%clk 0:02:37.1]} 2. d4 {[%clk 0:02:28.4]}
2... d5 {[%clk 0:02:37.3]} 3. Nd2 {[%clk 0:02:28.9]} 3... c5 {[%clk 0:02:37.1]}
4. exd5 {[%clk 0:02:29.1]} 4... Qxd5 {[%clk 0:02:37.2]} 5. dxc5 {[%clk
0:02:27.9]} 5... Qxc5 {[%clk 0:02:35.3]} 6. Ngf3 {[%clk 0:02:27.6]} 6... Nf6
{[%clk 0:02:34.7]} 7. Bd3 {[%clk 0:02:27]} 7... Nbd7 {[%clk 0:02:32.6]} 8. O-O
{[%clk 0:02:26.3]} 8... Be7 {[%clk 0:02:32]} 9. Qe2 {[%clk 0:02:25.3]} 9... O-O
{[%clk 0:02:29.5]} 10. c3 {[%clk 0:02:25.8]} 10... b6 {[%clk 0:02:27.3]} 11. Ne4
{[%clk 0:02:25.6]} 11... Qc7 {[%clk 0:02:27.2]} 12. Bg5 {[%clk 0:02:13.3]} 12...
Bb7 {[%clk 0:02:26.3]} 13. Rad1 {[%clk 0:02:14]} 13... Rad8 {[%clk 0:02:19.6]}
14. Bh4 {[%clk 0:02:11.8]} 14... Nd5 {[%clk 0:02:13.4]} 15. Bg3 {[%clk
0:02:01.4]} 15... Qc8 {[%clk 0:01:30.8]} 16. Nd6 {[%clk 0:01:48.2]} 16... Bxd6
{[%clk 0:01:30.5]} 17. Bxd6 {[%clk 0:01:49.1]} 17... Rfe8 {[%clk 0:01:30.9]} 18.
Bb1 {[%clk 0:01:06.2]} 18... e5 {[%clk 0:01:27.4]} 19. Ng5 {[%clk 0:00:54.8]}
19... N7f6 {[%clk 0:01:23.5]} 20. Bxe5 {[%clk 0:00:32.8]} 20... Nf4 {[%clk
0:01:22]} 21. Qe3 {[%clk 0:00:23.2]} 21... Qg4 {[%clk 0:01:20.2]} 0-1

[Event "*** Titled Tuesday Blitz"]
[Site "Chess.com"]
[Date "2021.04.20"]
[Round "5"]
[White "dhaessel"]
[Black "AniJak"]
[Result "0-1"]
[WhiteElo "2078"]
[BlackElo "2275"]
[TimeControl "180+1"]
[EndTime "10:53:06 PDT"]
[Termination "AniJak won on time"]

1. d4 {[%clk 0:03:00.9]} 1... f5 {[%clk 0:02:59.1]} 2. g3 {[%clk 0:02:54]} 2...
Nf6 {[%clk 0:02:58.2]} 3. Bg2 {[%clk 0:02:54.1]} 3... g6 {[%clk 0:02:56.6]} 4.
c4 {[%clk 0:02:51.3]} 4... Bg7 {[%clk 0:02:56.8]} 5. Nc3 {[%clk 0:02:51]} 5...
O-O {[%clk 0:02:57.2]} 6. Nf3 {[%clk 0:02:49.6]} 6... d6 {[%clk 0:02:57.7]} 7.
O-O {[%clk 0:02:47.7]} 7... Nc6 {[%clk 0:02:56.5]} 8. d5 {[%clk 0:02:39]} 8...
Ne5 {[%clk 0:02:56]} 9. Nxe5 {[%clk 0:02:39.4]} 9... dxe5 {[%clk 0:02:56.9]} 10.
c5 {[%clk 0:02:37.5]} 10... e4 {[%clk 0:02:47.3]} 11. Qb3 {[%clk 0:02:27.3]}
11... Kh8 {[%clk 0:02:44.7]} 12. Rd1 {[%clk 0:02:09.2]} 12... Nd7 {[%clk
0:02:35.1]} 13. Be3 {[%clk 0:01:53.6]} 13... b6 {[%clk 0:02:33.1]} 14. c6 {[%clk
0:01:09.9]} 14... Ne5 {[%clk 0:02:31.6]} 15. Bd4 {[%clk 0:00:48.7]} 15... Ba6
{[%clk 0:02:30.2]} 16. f4 {[%clk 0:00:39.4]} 16... Ng4 {[%clk 0:02:07.2]} 17.
Bxg7+ {[%clk 0:00:35.6]} 17... Kxg7 {[%clk 0:02:07.2]} 18. Nb5 {[%clk
0:00:30.6]} 18... Bxb5 {[%clk 0:02:02.5]} 19. Qxb5 {[%clk 0:00:28.8]} 19... Ne3
{[%clk 0:02:03.1]} 20. Rd2 {[%clk 0:00:23.5]} 20... Qd6 {[%clk 0:01:51.3]} 21.
Qb3 {[%clk 0:00:20.7]} 21... Ng4 {[%clk 0:01:50]} 22. e3 {[%clk 0:00:15]} 22...
Rad8 {[%clk 0:01:48.9]} 23. Bf1 {[%clk 0:00:12.6]} 23... Qc5 {[%clk 0:01:46.1]}
24. Re1 {[%clk 0:00:10.2]} 24... h6 {[%clk 0:01:37.7]} 25. Bc4 {[%clk
0:00:09.5]} 25... Kh7 {[%clk 0:01:37.3]} 26. a4 {[%clk 0:00:05.6]} 26... e6
{[%clk 0:01:34.5]} 0-1

[Event "*** Titled Tuesday Blitz"]
[Site "Chess.com"]
[Date "2021.04.20"]
[Round "5"]
[White "Ermito2020"]
[Black "TigrVShlyape"]
[Result "0-1"]
[WhiteElo "2599"]
[BlackElo "2820"]
[TimeControl "180+1"]
[EndTime "10:53:07 PDT"]
[Termination "TigrVShlyape won by resignation"]

1. e4 {[%clk 0:03:00.9]} 1... e5 {[%clk 0:02:58.9]} 2. Nf3 {[%clk 0:03:00.3]}
2... Nc6 {[%clk 0:02:58.7]} 3. d4 {[%clk 0:03:00.2]} 3... exd4 {[%clk
0:02:54.6]} 4. Bc4 {[%clk 0:02:58.1]} 4... Nf6 {[%clk 0:02:50.6]} 5. O-O {[%clk
0:02:57.8]} 5... Nxe4 {[%clk 0:02:49]} 6. Re1 {[%clk 0:02:58.2]} 6... d5 {[%clk
0:02:49.4]} 7. Bxd5 {[%clk 0:02:58.2]} 7... Qxd5 {[%clk 0:02:49.3]} 8. Nc3
{[%clk 0:02:58.7]} 8... Qd8 {[%clk 0:02:49.4]} 9. Rxe4+ {[%clk 0:02:56.7]} 9...
Be7 {[%clk 0:02:49.3]} 10. Nxd4 {[%clk 0:02:54.2]} 10... O-O {[%clk 0:02:20.5]}
11. Nxc6 {[%clk 0:02:53.1]} 11... bxc6 {[%clk 0:02:21.1]} 12. Qxd8 {[%clk
0:02:52.4]} 12... Bxd8 {[%clk 0:02:19.8]} 13. Rc4 {[%clk 0:02:46.2]} 13... Rb8
{[%clk 0:02:10.5]} 14. Rxc6 {[%clk 0:02:37]} 14... Re8 {[%clk 0:02:06.2]} 15.
Bf4 {[%clk 0:01:54.3]} 15... Rxb2 {[%clk 0:01:57]} 16. Bxc7 {[%clk 0:01:50.1]}
16... Bb7 {[%clk 0:01:40.9]} 17. Rc4 {[%clk 0:01:48.5]} 17... Bf6 {[%clk
0:01:23.8]} 18. Rc1 {[%clk 0:01:08.1]} 18... Rxc2 {[%clk 0:01:13.6]} 19. Rb1
{[%clk 0:00:16.1]} 19... Rxc3 {[%clk 0:01:09.1]} 0-1

[Event "*** Titled Tuesday Blitz"]
[Site "Chess.com"]
[Date "2021.04.20"]
[Round "5"]
[White "fyall777"]
[Black "HouseOfDurin"]
[Result "1-0"]
[WhiteElo "2321"]
[BlackElo "2126"]
[TimeControl "180+1"]
[EndTime "10:53:07 PDT"]
[Termination "fyall777 won by checkmate"]

1. f4 {[%clk 0:03:00.9]} 1... c5 {[%clk 0:02:59.5]} 2. Nf3 {[%clk 0:02:54.2]}
2... d5 {[%clk 0:02:59.9]} 3. g3 {[%clk 0:02:54.4]} 3... Nc6 {[%clk 0:02:59.9]}
4. Bg2 {[%clk 0:02:54.9]} 4... g6 {[%clk 0:03:00]} 5. O-O {[%clk 0:02:55]} 5...
Bg7 {[%clk 0:03:00.5]} 6. d3 {[%clk 0:02:55.5]} 6... e5 {[%clk 0:02:54.2]} 7.
fxe5 {[%clk 0:02:53.6]} 7... Nxe5 {[%clk 0:02:55.1]} 8. Nxe5 {[%clk 0:02:52.4]}
8... Bxe5 {[%clk 0:02:56]} 9. Nc3 {[%clk 0:02:51.6]} 9... Ne7 {[%clk 0:02:53.7]}
10. Bh6 {[%clk 0:02:49.8]} 10... Be6 {[%clk 0:02:50.1]} 11. e4 {[%clk
0:02:47.9]} 11... Bxc3 {[%clk 0:02:12.2]} 12. bxc3 {[%clk 0:02:46.2]} 12... d4
{[%clk 0:02:02]} 13. Bg7 {[%clk 0:02:33.1]} 13... Rg8 {[%clk 0:02:00.9]} 14. Bf6
{[%clk 0:02:31.3]} 14... Qd7 {[%clk 0:01:53.7]} 15. cxd4 {[%clk 0:02:29.8]}
15... cxd4 {[%clk 0:01:52.7]} 16. c3 {[%clk 0:02:03.1]} 16... dxc3 {[%clk
0:01:45]} 17. Bxc3 {[%clk 0:02:03]} 17... O-O-O {[%clk 0:01:44.5]} 18. d4 {[%clk
0:01:56.2]} 18... Bh3 {[%clk 0:01:38.2]} 19. Bxh3 {[%clk 0:01:48.1]} 19... Qxh3
{[%clk 0:01:39.1]} 20. Rxf7 {[%clk 0:01:48.2]} 20... Nc6 {[%clk 0:01:35.4]} 21.
d5 {[%clk 0:01:44.9]} 21... Rd7 {[%clk 0:01:11.8]} 22. Rxd7 {[%clk 0:01:41.6]}
22... Qxd7 {[%clk 0:01:12.4]} 23. dxc6 {[%clk 0:01:41.4]} 23... Qxc6 {[%clk
0:01:12.7]} 24. Qd5 {[%clk 0:01:39.6]} 24... Rd8 {[%clk 0:01:07.2]} 25. Qxc6+
{[%clk 0:01:39.2]} 25... bxc6 {[%clk 0:01:08.1]} 26. e5 {[%clk 0:01:35]} 26...
Rd3 {[%clk 0:01:06.9]} 27. Rc1 {[%clk 0:01:35]} 27... Kd7 {[%clk 0:01:06.8]} 28.
Kf2 {[%clk 0:01:32.1]} 28... Rd5 {[%clk 0:01:02.7]} 29. Rb1 {[%clk 0:01:28.8]}
29... Ke6 {[%clk 0:00:58.2]} 30. Ke2 {[%clk 0:01:23.4]} 30... Rc5 {[%clk
0:00:57.6]} 31. Kd3 {[%clk 0:01:22.3]} 31... h5 {[%clk 0:00:54]} 32. Rb7 {[%clk
0:01:20.3]} 32... Rd5+ {[%clk 0:00:53.1]} 33. Kc4 {[%clk 0:01:19.4]} 33... Rd1
{[%clk 0:00:52.4]} 34. Rc7 {[%clk 0:01:18]} 34... Rh1 {[%clk 0:00:48.6]} 35.
Rxc6+ {[%clk 0:01:17.9]} 35... Kd7 {[%clk 0:00:48.9]} 36. Rxg6 {[%clk
0:01:16.8]} 36... Rxh2 {[%clk 0:00:48.4]} 37. e6+ {[%clk 0:01:17.1]} 37... Ke8
{[%clk 0:00:48.1]} 38. Bb4 {[%clk 0:01:16.8]} 38... Rxa2 {[%clk 0:00:47.2]} 39.
Rg8# {[%clk 0:01:16.5]} 1-0

[Event "*** Titled Tuesday Blitz"]
[Site "Chess.com"]
[Date "2021.04.20"]
[Round "5"]
[White "viktorgen2021"]
[Black "pifion"]
[Result "0-1"]
[WhiteElo "2369"]
[BlackElo "2559"]
[TimeControl "180+1"]
[EndTime "10:53:09 PDT"]
[Termination "pifion won by resignation"]

1. d4 {[%clk 0:03:00.5]} 1... Nf6 {[%clk 0:02:57.4]} 2. Nf3 {[%clk 0:02:59.9]}
2... d5 {[%clk 0:02:56.7]} 3. c4 {[%clk 0:02:58.8]} 3... e6 {[%clk 0:02:56.5]}
4. g3 {[%clk 0:02:57.9]} 4... dxc4 {[%clk 0:02:56.2]} 5. Bg2 {[%clk 0:02:57]}
5... a6 {[%clk 0:02:55.9]} 6. a4 {[%clk 0:02:51.1]} 6... Nc6 {[%clk 0:02:54.9]}
7. O-O {[%clk 0:02:48.4]} 7... Rb8 {[%clk 0:02:54.9]} 8. e3 {[%clk 0:02:20.6]}
8... b5 {[%clk 0:02:51.2]} 9. Nfd2 {[%clk 0:02:18.8]} 9... Bb7 {[%clk
0:02:50.2]} 10. Na3 {[%clk 0:02:09.4]} 10... Bxa3 {[%clk 0:02:35.6]} 11. Rxa3
{[%clk 0:02:08.2]} 11... O-O {[%clk 0:02:33.2]} 12. Ra1 {[%clk 0:02:04.6]} 12...
Nb4 {[%clk 0:02:29.6]} 13. b3 {[%clk 0:01:50.9]} 13... Bxg2 {[%clk 0:02:28.2]}
14. Kxg2 {[%clk 0:01:50]} 14... c3 {[%clk 0:02:25.8]} 15. Nf3 {[%clk 0:01:46]}
15... Qd5 {[%clk 0:02:21.4]} 16. Ba3 {[%clk 0:01:44]} 16... bxa4 {[%clk
0:02:17.9]} 17. bxa4 {[%clk 0:01:40.5]} 17... Ne4 {[%clk 0:02:16.6]} 18. Kg1
{[%clk 0:01:29.4]} 18... Rb6 {[%clk 0:02:13.3]} 19. Rc1 {[%clk 0:01:23.8]} 19...
Rfb8 {[%clk 0:02:10.9]} 20. Ne5 {[%clk 0:01:23.5]} 20... f6 {[%clk 0:02:08.2]}
21. Nd3 {[%clk 0:00:59.6]} 21... c2 {[%clk 0:02:05.2]} 22. Qe2 {[%clk
0:00:44.7]} 22... Nxd3 {[%clk 0:02:01.5]} 23. Qxd3 {[%clk 0:00:45.1]} 23... Rb3
{[%clk 0:02:01.4]} 24. Qxc2 {[%clk 0:00:45.6]} 24... Rxa3 {[%clk 0:01:59.2]} 25.
Qxc7 {[%clk 0:00:44.8]} 25... Rf8 {[%clk 0:01:59.2]} 26. Rc6 {[%clk 0:00:31.2]}
26... Nd2 {[%clk 0:01:55.5]} 27. Rfc1 {[%clk 0:00:26]} 27... Nf3+ {[%clk
0:01:54.5]} 28. Kf1 {[%clk 0:00:25.2]} 28... Nxh2+ {[%clk 0:01:53.9]} 29. Ke2
{[%clk 0:00:24.3]} 29... Ra2+ {[%clk 0:01:53.2]} 30. Kd3 {[%clk 0:00:21.9]}
30... Qf5+ {[%clk 0:01:48.5]} 31. Kc3 {[%clk 0:00:19.8]} 31... Qxf2 {[%clk
0:01:47.2]} 32. Qe7 {[%clk 0:00:14.5]} 32... Qxe3+ {[%clk 0:01:44.1]} 33. Kb4
{[%clk 0:00:08.9]} 33... Qa3+ {[%clk 0:01:41.5]} 34. Kc4 {[%clk 0:00:09.1]}
34... Qxe7 {[%clk 0:01:41.2]} 0-1

[Event "*** Titled Tuesday Blitz"]
[Site "Chess.com"]
[Date "2021.04.20"]
[Round "5"]
[White "MaevskiyNikolay"]
[Black "ChampStan"]
[Result "1-0"]
[WhiteElo "2470"]
[BlackElo "2092"]
[TimeControl "180+1"]
[EndTime "10:53:10 PDT"]
[Termination "MaevskiyNikolay won by resignation"]

1. Nf3 {[%clk 0:03:00.9]} 1... Nf6 {[%clk 0:02:56.6]} 2. c4 {[%clk 0:03:01.3]}
2... g6 {[%clk 0:02:54.2]} 3. Nc3 {[%clk 0:03:00.2]} 3... d5 {[%clk 0:02:54.5]}
4. cxd5 {[%clk 0:02:59.9]} 4... Nxd5 {[%clk 0:02:55]} 5. Qa4+ {[%clk 0:02:46.9]}
5... Nc6 {[%clk 0:02:20.3]} 6. Ne5 {[%clk 0:02:46.4]} 6... Nb6 {[%clk
0:01:57.1]} 7. Nxc6 {[%clk 0:02:38.5]} 7... Nxa4 {[%clk 0:01:42.9]} 8. Nxd8
{[%clk 0:02:37.9]} 8... Nxc3 {[%clk 0:01:43.2]} 9. Nxf7 {[%clk 0:02:34.4]} 9...
Kxf7 {[%clk 0:01:43]} 10. dxc3 {[%clk 0:02:33.5]} 10... Bg7 {[%clk 0:01:30.9]}
11. e4 {[%clk 0:02:33.2]} 11... c6 {[%clk 0:01:25.9]} 12. Bc4+ {[%clk
0:02:32.4]} 12... Be6 {[%clk 0:01:25.3]} 13. Bxe6+ {[%clk 0:02:32.5]} 13... Kxe6
{[%clk 0:01:26.2]} 14. Ke2 {[%clk 0:02:32.8]} 14... b5 {[%clk 0:01:17.4]} 15.
Be3 {[%clk 0:02:31.4]} 15... a5 {[%clk 0:01:16]} 16. Bd4 {[%clk 0:02:25.1]}
16... Bf6 {[%clk 0:01:09.7]} 17. Rhd1 {[%clk 0:02:21.2]} 17... Rhd8 {[%clk
0:01:06.5]} 18. Rac1 {[%clk 0:02:20]} 18... Rd7 {[%clk 0:00:43.1]} 19. Bb6
{[%clk 0:02:12.7]} 19... Rb7 {[%clk 0:00:35.1]} 20. Bd4 {[%clk 0:02:08]} 20...
Rd8 {[%clk 0:00:32.4]} 21. Bxf6 {[%clk 0:02:05.1]} 21... Rxd1 {[%clk 0:00:33.3]}
22. Rxd1 {[%clk 0:02:05.2]} 22... exf6 {[%clk 0:00:31]} 23. Rd8 {[%clk 0:02:05]}
23... h5 {[%clk 0:00:18.3]} 24. Kd3 {[%clk 0:02:02.1]} 24... Rd7+ {[%clk
0:00:13.3]} 25. Rxd7 {[%clk 0:02:01.8]} 25... Kxd7 {[%clk 0:00:14.2]} 26. f4
{[%clk 0:01:56.9]} 26... Kd6 {[%clk 0:00:11.7]} 27. g3 {[%clk 0:01:54.8]} 27...
c5 {[%clk 0:00:07.3]} 28. b3 {[%clk 0:01:53.7]} 28... g5 {[%clk 0:00:05.1]} 29.
e5+ {[%clk 0:01:50.4]} 29... fxe5 {[%clk 0:00:03.8]} 30. fxg5 {[%clk 0:01:50.6]}
30... Ke6 {[%clk 0:00:04.3]} 31. Ke4 {[%clk 0:01:51]} 31... b4 {[%clk
0:00:03.1]} 32. c4 {[%clk 0:01:50.9]} 1-0